bitfinex/quotes_SOLUSD_20250317
["timestamp","ask_amount","ask_price","bid_price","bid_amount"]
[1742244993726,12.73436819,129.0,128.95,14.85501779]
[1742244993922,19.34116819,129.02,128.97,12.73436819]
[1742244995041,19.34116819,129.02,128.99,0.03]
[1742244995634,20.48566819,129.01,128.99,0.03]
[1742244996144,7.7513,129.01,128.99,0.03]
[1742244996716,7.751,129.02,128.99,0.03]
[1742244997115,20.48536819,129.02,128.99,0.03]
[1742244997319,12.73436819,129.01,128.99,0.03]
[1742244997720,20.48626819,129.0,128.99,0.03]
[1742245000249,27.38626819,129.0,128.99,0.03]
[1742245001236,20.0,128.97,128.95,4.96e-05]
[1742245001430,12.73436819,128.96,128.95,4.96e-05]
[1742245002143,74.93409664,128.96,128.95,4.96e-05]
[1742245002349,19.21829514,128.95,128.84,6.4058]
[1742245002536,12.73436819,128.9,128.85,12.73436819]
[1742245003137,12.73436819,128.89,128.84,12.73436819]
[1742245003337,12.73436819,128.9,128.85,12.73436819]
[1742245004549,12.73436819,128.9,128.83,7.7617]
[1742245004847,12.73436819,128.9,128.85,12.73436819]
[1742245005154,20.49236819,128.9,128.85,12.73436819]
[1742245005359,12.73436819,128.89,128.84,12.73436819]
[1742245005559,12.73436819,128.88,128.83,12.73436819]
[1742245006448,12.73436819,128.87,128.82,14.28816819]
[1742245006633,12.73436819,128.87,128.82,22.05076819]
[1742245007151,12.73436819,128.88,128.83,12.73436819]
[1742245007353,12.73436819,128.88,128.85,0.03]
[1742245008539,19.63436819,128.88,128.85,0.03]
[1742245009736,12.73436819,128.86,128.85,0.03]
[1742245010037,14.29816819,128.86,128.85,0.03]
[1742245010233,39.71626333,128.86,128.85,0.03]
[1742245011355,46.63626333,128.86,128.85,0.03]
[1742245011559,27.41796819,128.86,128.85,0.03]
[1742245012136,12.73436819,128.87,128.85,0.03]
[1742245013248,19.97686114,128.88,128.85,0.03]
[1742245013453,19.97686114,128.87,128.85,0.03]
[1742245014255,19.77686114,128.87,128.85,0.03]
[1742245014556,19.97686114,128.88,128.85,0.03]
[1742245015439,19.97686114,128.87,128.85,0.03]
[1742245017360,19.97686114,128.86,128.85,0.03]
[1742245020656,19.97686114,128.87,128.85,0.03]
[1742245021241,19.97686114,128.86,128.85,0.03]
[1742245021657,39.19515628,128.86,128.85,0.03]
[1742245023065,19.97686114,128.86,128.85,0.03]
[1742245023271,27.73716114,128.86,128.85,0.03]
[1742245023442,7.7603,128.86,128.85,0.03]
[1742245023741,27.73716114,128.86,128.85,0.03]
[1742245024239,46.95545628,128.86,128.85,0.03]
[1742245024438,46.95545628,128.86,128.73,19.97686114]
[1742245024439,19.97686114,128.79,128.73,19.97686114]
[1742245024650,19.97686114,128.82,128.77,19.97686114]
[1742245025160,27.73916114,128.83,128.78,27.74196114]
[1742245025737,19.97686114,128.82,128.78,7.7651]
[1742245025942,27.73866114,128.84,128.79,19.97686114]
[1742245027767,19.97686114,128.83,128.78,27.24196114]
[1742245028259,27.73866114,128.84,128.79,19.97686114]
[1742245029545,27.73866114,128.84,128.79,27.74136114]
[1742245030065,19.97686114,128.84,128.79,27.74136114]
[1742245030265,27.73846114,128.84,128.79,27.74136114]
[1742245030857,19.97686114,128.84,128.79,27.74136114]
[1742245031362,34.71796114,128.85,128.8,19.97686114]
[1742245032347,34.71796114,128.85,128.8,27.74066114]
[1742245033164,27.53117547,128.85,128.8,20.55387547]
[1742245033554,27.53117547,128.85,128.79,20.55427547]
[1742245033779,12.79007547,128.84,128.79,20.55427547]
[1742245034650,20.55187547,128.84,128.79,20.55427547]
[1742245034852,7.7618,128.84,128.8,12.79007547]
[1742245035772,7.7618,128.84,128.8,20.55387547]
[1742245036274,12.79007547,128.86,128.81,12.79007547]
[1742245036455,20.61307547,128.87,128.82,12.79007547]
[1742245036862,7.823,128.87,128.83,12.79007547]
[1742245037876,7.823,128.87,128.83,20.55217547]
[1742245038468,0.063,128.87,128.83,20.55217547]
[1742245039058,0.063,128.87,128.83,12.79007547]
[1742245039469,12.85307547,128.87,128.82,20.55247547]
[1742245039675,12.85307547,128.87,128.82,12.79007547]
[1742245039876,7.7603,128.86,128.82,12.79007547]
[1742245040054,7.7603,128.86,128.82,20.55277547]
[1742245041773,20.61307547,128.87,128.8,9.4199]
[1742245041981,12.79007547,128.83,128.79,205.34]
[1742245042958,12.79007547,128.83,128.79,213.1044]
[1742245043765,20.55197547,128.84,128.79,213.1044]
[1742245044676,20.55197547,128.84,128.79,7.7644]
[1742245044979,20.55117547,128.85,128.79,20.55447547]
[1742245045178,20.55117547,128.85,128.8,12.79007547]
[1742245045876,12.79007547,128.85,128.8,12.79007547]
[1742245046384,12.85307547,128.87,128.82,12.79007547]
[1742245046583,0.063,128.87,128.82,12.79007547]
[1742245046881,12.85307547,128.87,128.82,12.79007547]
[1742245047271,20.61277547,128.87,128.82,20.55227547]
[1742245047470,12.85307547,128.87,128.82,20.55227547]
[1742245047977,0.063,128.87,128.83,12.79007547]
[1742245049078,0.063,128.87,128.84,7.7615]
[1742245050195,0.063,128.87,128.86,19.97372634]
[1742245050494,0.063,128.87,128.84,34.26202634]
[1742245050867,0.063,128.87,128.84,6.5268]
[1742245051379,0.063,128.87,128.84,34.26192634]
[1742245053675,0.063,128.87,128.85,19.97372634]
[1742245054761,0.063,128.87,128.84,34.26192634]
[1742245054978,0.063,128.87,128.85,19.97372634]
[1742245055388,0.063,128.87,128.86,19.97372634]
[1742245055587,0.063,128.87,128.86,27.73402634]
[1742245069297,0.063,128.87,128.86,12.77657757]
[1742245072507,0.063,128.87,128.86,20.53687757]
[1742245076919,0.063,128.87,128.85,7.7609]
[1742245077098,0.063,128.87,128.86,12.77657757]
[1742245078012,0.063,128.87,128.86,20.53687757]
[1742245085512,0.063,128.87,128.86,7.7603]
[1742245085812,0.063,128.87,128.86,12.77657757]
[1742245089929,0.063,128.87,128.85,12.77657757]
[1742245090302,0.063,128.87,128.84,150.87657757]
[1742245090727,0.063,128.87,128.84,12.77657757]
[1742245093703,0.063,128.87,128.84,20.53807757]
[1742245094336,0.063,128.87,128.85,12.77657757]
[1742245095334,0.063,128.87,128.85,20.53717757]
[1742245095909,0.063,128.87,128.85,12.77657757]
[1742245097739,0.063,128.87,128.85,20.53737757]
[1742245099831,0.063,128.87,128.84,12.77657757]
[1742245100735,0.063,128.87,128.83,7.7621]
[1742245100937,0.063,128.87,128.85,7.7609]
[1742245102925,7.7609,128.85,128.8,205.28]
[1742245103228,20.53747757,128.85,128.8,205.28]
[1742245103414,12.77657757,128.84,128.8,213.0436]
[1742245103930,12.77657757,128.84,128.8,205.28]
[1742245105109,20.53817757,128.84,128.8,205.28]
[1742245105831,7.7616,128.84,128.8,218.05657757]
[1742245106012,22.07357757,128.85,128.8,218.05657757]
[1742245106211,9.297,128.85,128.8,218.05657757]
[1742245106428,22.07357757,128.85,128.8,218.05657757]
[1742245109431,22.07357757,128.85,128.8,205.28]
[1742245109432,12.77657757,128.84,128.8,205.28]
[1742245111621,7.7621,128.83,128.8,205.28]
[1742245113243,20.53867757,128.83,128.78,150.90657757]
[1742245113446,20.53867757,128.83,128.79,12.77657757]
[1742245113942,7.7621,128.83,128.79,12.77657757]
[1742245114142,20.53827757,128.84,128.79,12.77657757]
[1742245114737,1.5358,128.85,128.79,12.77657757]
[1742245114941,1.5358,128.85,128.8,12.77657757]
[1742245115156,12.77657757,128.84,128.8,12.77657757]
[1742245116752,12.77657757,128.84,128.79,20.54107757]
[1742245118455,12.77657757,128.84,128.8,12.77657757]
[1742245119636,12.77657757,128.83,128.78,7.7951]
[1742245119839,12.77657757,128.83,128.79,12.77657757]
[1742245120445,7.7615,128.84,128.79,20.54087757]
[1742245120643,12.77657757,128.83,128.79,20.54087757]
[1742245121950,7.7615,128.84,128.79,20.54087757]
[1742245122135,12.77657757,128.83,128.79,20.54087757]
[1742245122335,12.77657757,128.84,128.79,20.54087757]
[1742245124556,12.83957757,128.84,128.79,20.54087757]
[1742245129458,0.063,128.84,128.82,12.77657757]
[1742245129657,0.063,128.84,128.81,19.49657757]
[1742245130760,0.063,128.84,128.81,6.72]
[1742245130928,0.063,128.84,128.82,12.77657757]
[1742245131463,0.063,128.84,128.83,20.53867757]
[1742245134758,0.063,128.84,128.82,7.7625]
[1742245134963,0.063,128.84,128.82,158.63907757]
[1742245137240,0.063,128.84,128.82,138.1]
[1742245138831,12.83957757,128.84,128.82,138.1]
[1742245140155,0.063,128.84,128.82,138.1]
[1742245140353,0.063,128.84,128.82,145.8625]
[1742245140561,0.063,128.84,128.82,20.53907757]
[1742245140940,0.063,128.84,128.83,12.77657757]
[1742245141148,0.063,128.84,128.83,19.49657757]
[1742245141460,0.0001,128.84,128.83,184.57697271]
[1742245143634,0.0001,128.84,128.83,165.50083914]
[1742245145157,0.0001,128.84,128.83,165.35867757]
[1742245145359,0.0001,128.84,128.81,158.63957757]
[1742245145543,0.0001,128.84,128.81,145.863]
[1742245145743,0.0001,128.84,128.81,138.1]
[1742245146381,0.0001,128.84,128.81,158.63977757]
[1742245148476,0.0001,128.84,128.82,12.77657757]
[1742245149465,0.0001,128.84,128.83,7.7621]
[1742245151778,0.0001,128.84,128.83,20.53867757]
[1742245152072,0.0001,128.84,128.83,20.68083914]
[1742245152251,0.0001,128.84,128.83,158.78083914]
[1742245153455,0.0001,128.84,128.83,158.63867757]
[1742245161977,0.0001,128.84,128.83,177.85697271]
[1742245163388,0.0001,128.84,128.83,177.88697271]
[1742245166281,0.0001,128.84,128.83,179.38967271]
[1742245166597,1.6434,128.92,128.87,0.14216157]
[1742245166899,6.1358,128.94,128.91,12.77657757]
[1742245167986,0.063,128.96,128.92,20.53327757]
[1742245168198,0.063,128.96,128.94,12.77657757]
[1742245168493,0.063,128.96,128.93,12.77657757]
[1742245169369,0.063,128.96,128.94,12.77657757]
[1742245169989,0.063,128.96,128.95,20.53147757]
[1742245170572,0.063,128.97,128.96,0.14216157]
[1742245170778,0.063,128.97,128.96,19.63873914]
[1742245170982,0.063,129.0,128.97,138.037]
[1742245171183,0.063,129.0,128.99,12.91873914]
[1742245171483,0.063,129.0,128.99,150.81357757]
[1742245171675,0.063,129.0,128.99,150.95573914]
[1742245172073,0.063,129.0,128.99,145.7895]
[1742245172283,0.063,129.0,128.99,158.56607757]
[1742245172481,1.5345,129.03,128.99,165.30607757]
[1742245172666,1.5345,129.03,129.0,12.77657757]
[1742245172866,1.0345,129.03,129.0,12.77657757]
[1742245173097,1.0345,129.03,129.01,12.77657757]
[1742245175068,1.0345,129.03,129.0,12.77657757]
[1742245175484,1.0345,129.03,129.01,12.77657757]
[1742245175794,1.0975,129.03,129.01,12.77657757]
[1742245176495,0.063,129.03,129.01,12.77657757]
[1742245176688,0.063,129.03,129.02,12.77657757]
[1742245177184,0.063,129.03,129.02,150.81357757]
[1742245177392,0.063,129.03,129.02,150.95573914]
[1742245178794,0.063,129.08,129.02,158.70643914]
[1742245179002,0.063,129.08,129.05,12.77657757]
[1742245179895,7.8103,129.08,129.04,12.77657757]
[1742245180089,7.8103,129.08,129.03,144.757]
[1742245180090,1.5799,129.06,129.03,144.757]
[1742245180272,6.0759,129.05,129.01,19.49657757]
[1742245180984,6.0759,129.05,129.01,19.49657757]
[1742245181183,13.8252,129.05,129.01,19.49657757]
[1742245181386,6.0759,129.05,129.01,19.49657757]
[1742245181579,13.825,129.05,129.01,19.49657757]
[1742245182386,13.825,129.05,129.01,12.77657757]
[1742245182587,13.825,129.05,129.01,19.49657757]
[1742245183108,13.825,129.05,129.01,26.63924016]
[1742245183298,6.0759,129.05,129.01,26.63924016]
[1742245184807,6.0759,129.05,129.01,34.39054016]
[1742245185206,33.74414016,129.05,129.01,19.91924016]
[1742245185387,33.74414016,129.05,129.01,26.63924016]
[1742245185592,6.0759,129.05,129.01,34.39054016]
[1742245186214,6.0759,129.05,129.01,14.4713]
[1742245186387,6.0759,129.05,129.01,34.39054016]
[1742245187909,6.1059,129.05,129.01,34.39054016]
[1742245188989,0.03,129.05,129.03,19.91924016]
[1742245189305,0.03,129.05,129.04,19.91924016]
[1742245190007,6.6522,129.08,129.05,19.91924016]
[1742245190203,6.6522,129.08,129.06,6.72]
[1742245191438,6.6522,129.08,129.06,14.468]
[1742245191612,6.6522,129.08,129.06,6.72]
[1742245193919,34.31854016,129.08,129.03,19.91924016]
[1742245194209,34.31854016,129.08,129.03,26.63924016]
[1742245194416,34.31854016,129.08,129.03,34.38934016]
[1742245194815,34.31854016,129.08,129.03,14.4701]
[1742245194996,19.91924016,129.07,129.03,14.4701]
[1742245195523,27.66704016,129.07,129.03,14.4701]
[1742245197101,19.91924016,129.07,129.03,14.4701]
[1742245199803,19.91924016,129.08,129.03,34.38934016]
[1742245201227,19.98224016,129.09,129.04,19.91924016]
[1742245202431,19.91924016,129.07,129.03,6.72]
[1742245202713,19.91924016,129.06,129.03,6.72]
[1742245203212,20.49545648,129.07,129.03,6.72]
[1742245203391,20.49545648,129.07,129.03,14.47]
[1742245203819,7.748,129.07,129.03,20.49745648]
[1742245204699,1.5402,129.07,129.0,350.8186]
[1742245204897,12.74745648,129.04,129.0,212.7816]
[1742245205207,20.49645648,129.05,129.0,225.52905648]
[1742245206219,1.5402,129.07,129.01,12.74745648]
[1742245206468,22.03545648,129.07,129.02,6.72]
[1742245206632,12.74745648,129.06,129.02,6.72]
[1742245206822,41.40475648,129.07,129.02,6.72]
[1742245207124,1.5402,129.07,129.03,12.74745648]
[1742245207322,0.063,129.09,129.05,12.74745648]
[1742245208636,0.063,129.09,129.06,7.7483]
[1742245210200,0.063,129.09,129.05,20.49615648]
[1742245212028,0.063,129.09,129.06,12.74745648]
[1742245212711,0.063,129.09,129.06,19.46745648]
[1742245214118,0.063,129.09,129.07,12.74745648]
[1742245214607,0.063,129.09,129.06,27.21535648]
[1742245214802,0.063,129.09,129.06,27.25535648]
[1742245215337,0.063,129.09,129.06,19.50745648]
[1742245216335,0.063,129.09,129.06,27.25565648]
[1742245217119,0.063,129.09,129.08,12.74745648]
[1742245217818,0.063,129.09,129.08,12.88961805]
[1742245218216,0.0001,129.09,129.08,228.73967754]
[1742245220217,0.0001,129.09,129.08,540.73967754]
[1742245221315,0.063,129.12,129.1,0.42648471]
[1742245221515,0.063,129.12,129.11,19.66961805]
[1742245223038,0.063,129.12,129.11,6.78]
[1742245223212,0.063,129.12,129.11,19.52745648]
[1742245228442,0.063,129.12,129.1,138.037]
[1742245229149,0.063,129.12,129.1,150.78445648]
[1742245229443,0.063,129.12,129.1,158.53015648]
[1742245229645,0.063,129.12,129.11,12.74745648]
[1742245230439,0.063,129.12,129.11,12.88961805]
[1742245231155,0.063,129.12,129.11,20.63491805]
[1742245231453,0.063,129.12,129.11,20.49275648]
[1742245231649,0.063,129.12,129.11,12.74745648]
[1742245232729,0.063,129.12,129.11,20.49275648]
[1742245235047,0.063,129.12,129.11,20.63491805]
[1742245235633,0.063,129.12,129.11,20.49275648]
[1742245235948,0.063,129.12,129.11,20.63491805]
[1742245237654,0.063,129.12,129.11,158.67191805]
[1742245239549,0.063,129.12,129.11,159.09840276]
[1742245240133,0.063,129.16,129.12,0.42648471]
[1742245240351,0.063,129.16,129.15,12.74745648]
[1742245240746,0.063,129.16,129.15,150.92661805]
[1742245240945,0.063,129.16,129.15,201.91644397]
[1742245241146,0.063,129.18,129.16,0.42648471]
[1742245241362,0.063,129.18,129.17,19.66961805]
[1742245241556,0.063,129.18,129.17,27.41131805]
[1742245242265,0.063,129.18,129.17,232.25131805]
[1742245243357,0.063,129.18,129.17,224.50961805]
[1742245243556,0.063,129.18,129.17,224.36745648]
[1742245244061,0.063,129.18,129.17,224.50961805]
[1742245246375,0.063,129.18,129.17,362.54661805]
[1742245247366,0.063,129.18,129.17,370.28831805]
[1742245247573,0.063,129.18,129.17,362.54661805]
[1742245247774,0.063,129.18,129.17,349.657]
[1742245247970,0.063,129.18,129.17,342.877]
[1742245252248,0.063,129.18,129.17,204.84]
[1742245252977,0.063,129.18,129.17,212.5817]
[1742245253277,0.063,129.18,129.17,225.32915648]
[1742245258096,0.063,129.18,129.17,363.36615648]
[1742245263592,12.74745648,129.23,129.18,12.74745648]
[1742245264000,1.7037,129.24,129.18,12.74745648]
[1742245264194,12.74745648,129.22,129.17,382.72045648]
[1742245264402,12.74745648,129.21,129.17,350.6187]
[1742245264775,12.74745648,129.2,129.17,350.6187]
[1742245264973,12.74745648,129.18,129.17,212.5817]
[1742245266201,12.74745648,129.18,129.17,204.84]
[1742245267277,12.74745648,129.18,129.16,0.063]
[1742245267482,12.74745648,129.17,129.16,0.063]
[1742245268784,20.48915648,129.17,129.16,0.063]
[1742245269176,39.70745162,129.17,129.16,0.063]
[1742245269595,39.28096691,129.17,129.16,0.063]
[1742245269802,39.70745162,129.17,129.16,0.063]
[1742245269978,12.74745648,129.12,129.11,204.76]
[1742245270177,12.74745648,129.12,129.09,0.063]
[1742245270410,12.74745648,129.1,129.09,0.063]
[1742245272587,12.74745648,129.12,129.09,0.063]
[1742245272787,12.74745648,129.13,129.09,0.063]
[1742245273696,12.74745648,129.13,129.09,20.55695648]
[1742245273890,23.21077519,129.18,129.12,12.74745648]
[1742245273891,12.74745648,129.17,129.12,12.74745648]
[1742245274202,12.77745648,129.18,129.13,19.50745648]
[1742245274417,12.77745648,129.18,129.14,6.76]
[1742245275091,19.90988448,129.18,129.14,6.76]
[1742245275998,19.90988448,129.18,129.15,7.7429]
[1742245276379,0.03,129.18,129.15,7.7429]
[1742245277078,0.03,129.18,129.15,27.62278448]
[1742245277412,0.03,129.18,129.17,19.87988448]
[1742245278210,0.03,129.18,129.17,27.62158448]
[1742245278981,0.03,129.18,129.17,165.65858448]
[1742245280216,0.03,129.18,129.17,145.7787]
[1742245294118,0.03,129.18,129.17,146.34734628]
[1742245294324,0.03,129.18,129.17,164.99699514]
[1742245295619,0.03,129.18,129.17,369.61483357]
[1742245295927,0.03,129.18,129.17,369.75699514]
[1742245296131,0.03,129.18,129.17,212.5017]
[1742245300211,0.03,129.18,129.17,7.7417]
[1742245302037,0.03,129.18,129.17,145.8417]
[1742245306246,0.03,129.18,129.17,7.7417]
[1742245310449,0.03,129.18,129.16,204.803]
[1742245314452,0.03,129.18,129.16,0.063]
[1742245317166,7.7417,129.17,129.16,0.063]
[1742245317354,14.4713,129.18,129.16,0.063]
[1742245319877,6.73,129.18,129.16,0.063]
[1742245320066,0.03,129.18,129.16,0.063]
[1742245322570,0.03,129.18,129.16,138.163]
[1742245323658,0.03,129.18,129.17,7.7417]
[1742245324777,1.81981375,129.23,129.17,46.31429514]
[1742245325079,1.81981375,129.23,129.18,6.7]
[1742245325381,0.15331375,129.23,129.18,6.7]
[1742245325875,0.15331375,129.23,129.19,27.0918]
[1742245326384,0.15331375,129.23,129.19,165.1918]
[1742245327070,0.15331375,129.23,129.2,19.21829514]
[1742245327269,0.15331375,129.23,129.22,39.21829514]
[1742245327472,0.15331375,129.23,129.22,26.7]
[1742245327874,0.15331375,129.23,129.22,34.4387]
[1742245328075,0.15331375,129.23,129.22,53.65699514]
[1742245329572,0.18331375,129.23,129.22,53.65699514]
[1742245330690,0.18331375,129.23,129.22,26.7]
[1742245331370,0.18331375,129.23,129.22,164.8]
[1742245331889,0.18331375,129.23,129.22,172.5387]
[1742245334997,0.18331375,129.23,129.22,191.75699514]
[1742245335179,1.375e-05,129.23,129.22,191.75699514]
[1742245338185,1.375e-05,129.23,129.22,510.15369514]
[1742245339903,1.375e-05,129.23,129.22,714.83369514]
[1742245340204,0.063,129.24,129.23,138.09998625]
[1742245340888,0.063,129.24,129.23,157.31828139]
[1742245342000,0.063,129.24,129.23,165.05638139]
[1742245343014,0.063,129.24,129.23,145.83808625]
[1742245343792,0.063,129.24,129.23,7.7381]
[1742245348919,0.063,129.24,129.23,145.83808625]
[1742245350598,0.063,129.24,129.23,138.09998625]
[1742245354730,0.063,129.24,129.22,7.8015]
[1742245356935,0.063,129.24,129.22,0.063]
[1742245357722,0.063,129.24,129.23,20.0]
[1742245359135,0.063,129.24,129.23,27.7381]
[1742245360635,0.063,129.25,129.23,165.05638139]
[1742245360828,0.063,129.31,129.29,19.21829514]
[1742245361029,0.063,129.31,129.29,163.95528139]
[1742245361336,0.063,129.31,129.3,7.7339]
[1742245362333,0.063,129.31,129.29,152.47128625]
[1742245369754,0.063,129.31,129.3,0.56864628]
[1742245369947,0.063,129.31,129.3,361.83528139]
[1742245370833,0.063,129.31,129.3,369.56918139]
[1742245372087,0.063,129.31,129.3,350.91953253]
[1742245382801,0.063,129.31,129.3,350.35088625]
[1742245386985,0.063,129.31,129.3,145.77088625]
[1742245387607,0.063,129.31,129.3,7.7339]
[1742245390195,0.063,129.31,129.29,145.77118625]
[1742245392923,0.063,129.31,129.29,138.03698625]
[1742245393420,0.063,129.31,129.27,211.22]
[1742245393421,0.063,129.31,129.27,204.52]
[1742245395828,18.71264886,129.31,129.27,204.52]
[1742245396214,18.71264886,129.31,129.26,138.03698625]
[1742245396427,7.7339,129.3,129.25,0.063]
[1742245397519,6.1511,129.29,129.25,0.063]
[1742245398042,12.8511,129.29,129.25,0.063]
[1742245398832,9.3174,129.28,129.25,0.063]
[1742245399216,28.6552,129.28,129.25,0.063]
[1742245399924,9.3174,129.28,129.25,0.063]
[1742245401844,1.5823,129.28,129.25,0.063]
[1742245404133,9.3174,129.28,129.25,0.063]
[1742245410364,19.21829514,129.27,129.25,0.063]
[1742245412769,26.95449514,129.27,129.25,0.063]
[1742245413565,25.34964886,129.26,129.25,0.063]
[1742245416562,1.5823,129.28,129.25,0.063]
[1742245420178,0.03,129.29,129.25,0.063]
[1742245430879,18.64964886,129.28,129.25,0.063]
[1742245432913,7.7357,129.27,129.25,0.063]
[1742245433401,45.91829514,129.26,129.25,0.063]
[1742245434481,25.91829514,129.26,129.25,0.063]
[1742245434995,33.65459514,129.26,129.25,0.063]
[1742245437183,39.97296203,129.26,129.25,0.0001]
[1742245437391,49.2030912,129.26,129.25,0.0001]
[1742245437789,49.7030912,129.26,129.25,0.0001]
[1742245438303,49.2030912,129.26,129.25,0.0001]
[1742245440215,73.0430912,129.26,129.25,0.0001]
[1742245440596,81.22341826,129.26,129.25,0.0001]
[1742245441895,20.28432314,129.23,129.22,0.063]
[1742245442201,39.21829514,129.23,129.22,0.063]
[1742245442402,19.21829514,129.22,129.16,0.063]
[1742245442600,19.21829514,129.2,129.16,0.063]
[1742245442807,18.933972,129.2,129.16,0.063]
[1742245444114,26.674272,129.2,129.16,0.063]
[1742245444927,38.933972,129.23,129.16,0.063]
[1742245445111,7.7372,129.25,129.17,6.5115]
[1742245445308,14.436,129.27,129.18,1.5305]
[1742245446018,14.436,129.27,129.19,27.0918]
[1742245448622,14.436,129.27,129.19,165.12878625]
[1742245448817,6.7,129.27,129.19,165.12878625]
[1742245449023,6.7,129.27,129.2,6.5115]
[1742245449322,6.7,129.27,129.2,151.24848625]
[1742245450934,6.7,129.27,129.21,27.0876]
[1742245454247,20.0,129.27,129.21,27.0876]
[1742245454431,20.0,129.27,129.22,1.5044]
[1742245455109,20.0,129.27,129.23,7.7381]
[1742245455509,6.73,129.29,129.23,7.7381]
[1742245455716,14.4645,129.29,129.23,7.7381]
[1742245456316,19.21829514,129.28,129.22,1.5044]
[1742245457226,7.7357,129.27,129.22,1.5044]
[1742245457411,0.03,129.27,129.22,9.2429]
[1742245458633,0.03,129.27,129.22,1.5044]
[1742245459623,0.03,129.27,129.22,9.2431]
[1742245464234,0.03,129.27,129.22,1.5044]
[1742245464729,0.03,129.27,129.26,6.1234]
[1742245464909,0.03,129.29,129.26,151.42903253]
[1742245466233,0.03,129.29,129.27,7.7357]
[1742245474047,0.063,129.31,129.28,1.6084]
[1742245474235,0.063,129.31,129.3,6.131]
[1742245474553,0.063,129.31,129.3,12.831]
[1742245476023,0.063,129.31,129.3,20.5649]
[1742245477951,0.063,129.31,129.3,21.13354628]
[1742245478926,0.0001,129.31,129.3,179.39588139]
[1742245479357,0.0001,129.31,129.3,491.39588139]
[1742245481045,0.0001,129.31,129.3,179.39588139]
[1742245484857,0.0001,129.31,129.3,160.74623253]
[1742245485953,0.0001,129.31,129.3,153.47758625]
[1742245486151,0.0001,129.31,129.3,160.17758625]
[1742245487029,0.0001,129.31,129.3,158.60188625]
[1742245490351,0.0001,129.31,129.3,152.47088625]
[1742245490853,0.0001,129.31,129.3,145.77088625]
[1742245491052,0.0001,129.31,129.3,138.03698625]
[1742245491249,0.0001,129.31,129.29,138.03698625]
[1742245493869,0.0001,129.31,129.28,145.83488625]
[1742245515787,20.0,129.3,129.28,0.063]
[1742245517777,7.7345,129.29,129.28,0.063]
[1742245519598,9.3206,129.29,129.28,0.063]
[1742245522676,34.66329514,129.29,129.28,0.063]
[1742245523794,40.92283766,129.29,129.28,0.063]
[1742245524589,34.66329514,129.29,129.28,0.063]
[1742245525266,15.445,129.29,129.28,0.063]
[1742245525489,21.5861,129.29,129.28,0.063]
[1742245525990,20.0,129.29,129.28,0.063]
[1742245527188,46.95279514,129.29,129.28,0.063]
[1742245531300,46.95279514,129.29,129.28,0.0001]
[1742245531600,48.49779514,129.29,129.28,0.0001]
[1742245533898,20.0,129.29,129.28,0.0001]
[1742245535097,27.7345,129.29,129.28,0.0001]
[1742245535882,20.0,129.29,129.28,0.0001]
[1742245537504,7.7341,129.3,129.28,0.0001]
[1742245538001,7.7334,129.31,129.28,0.0001]
[1742245549120,7.7334,129.31,129.24,152.43728625]
[1742245550011,7.7334,129.31,129.26,7.7363]
[1742245550915,7.7334,129.31,129.28,0.063]
[1742245551511,0.0001,129.31,129.28,0.063]
[1742245561716,7.7334,129.31,129.28,0.063]
[1742245562704,0.0001,129.31,129.28,0.063]
[1742245564003,20.0,129.29,129.28,0.063]
[1742245564204,26.7,129.29,129.28,0.063]
[1742245566864,34.4345,129.29,129.28,0.063]
[1742245567036,26.7,129.29,129.28,0.063]
[1742245567330,0.0001,129.31,129.28,138.09998625]
[1742245569328,0.0001,129.31,129.29,7.7345]
[1742245571935,0.0001,129.31,129.29,145.77148625]
[1742245574635,0.0001,129.31,129.29,145.62148625]